[Event "1st Henriquez Urena Memorial 2022"]
[Site "Santo Domingo"]
[Date "2022.09.20"]
[Round "5.6"]
[White "Camacho Campusano, David Daniel"]
[Black "Orizondo, Hugo"]
[Result "1/2-1/2"]
[ECO "E02"]
[WhiteElo "2230"]
[BlackElo "2034"]
[Annotator "TA"]
[PlyCount "82"]
[EventDate "2022.09.16"]
[EventType "swiss"]
[EventCountry "DOM"]
[SourceTitle "playchess.com"]
[Source "ChessBase"]
[SourceQuality "1"]
[TimeControl "5400+30"]

{[%evp 17,69,39,62,50,72,57,62,60,87,52,58,72,64,40,47,0,0,0,36,31,39,37,44,-16,-14,-11,-12,-5,-12,-10,8,9,7,4,6,-45,54,-13,-28,-67,-61,-68,-56,-63,-79,-114,-124,-194,-188,-292,-264,-307,-300,-262]} 1. d4 {[%emt 0:01:49]} e6 {[%emt 0:00:47]} 2. c4 {[%emt 0:00:02]} d5 {[%emt 0:00:12]} 3. Nf3 Nf6 {[%emt 0:00:39]} 4. g3 {[%emt 0:00:05]} Be7 {[%emt 0:00:30]} 5. Bg2 {[%emt 0:00:30]} O-O {[%emt 0:00:14]} 6. O-O {[%emt 0:00:03]} c6 {[%emt 0:00:35]} 7. Nc3 {[%emt 0:00:55]} Nbd7 {[%emt 0:01:22]} 8. Qd3 $1 {[%emt 0:06:12][%mdl 4] is currently scoring better than 8.b3.} dxc4 {[%emt 0:07:47]} 9. Qxc4 {[%emt 0:00:02]} Nb6 {[%emt 0:00:55]} 10. Qb3 {[%emt 0:00:22] E02: Open Catalan: 5 Qa4+.} a5 {[%emt 0:05:21]} 11. a3 {[%emt 0:00:43] White is more active.} Nbd5 {[%emt 0:04:30]} 12. Rd1 {[%emt 0:05:31] White is slightly better.} Qb6 {[%emt 0:06:36]} 13. Qxb6 {[%emt 0:21:54]} Nxb6 {[%emt 0:01:27]} 14. e4 {[%emt 0:00:02]} c5 {[%emt 0:09:56]} 15. dxc5 {[%emt 0:16:09]} Bxc5 {[%emt 0:00:07]} 16. h3 {[%emt 0:00:03] Against Ng4} (16. Ne1 $14 {was preferrable.}) 16... Bd7 $11 {[%emt 0:03:13]} 17. Ne5 {[%emt 0:00:10]} Be8 {[%emt 0:02:44]} 18. Nd3 {[%emt 0:08:48]} Bd4 {[%emt 0:17:20]} 19. Ne2 $1 {[%emt 0:00:07]} Ba4 {[%emt 0:01:20]} 20. Rd2 {[%emt 0:14:34]} (20. Re1 $14 Bb5 21. Nxd4 Bxd3 22. Bf4) 20... Nc4 {[%emt 0:15:22] [#] White must now prevent ...Rfd8.} 21. Nxd4 {[%emt 0:00:06] Re2 is the strong threat.} Rad8 {[%emt 0:00:30]} 22. Re2 {[%emt 0:12:20][%cal Od3c5] aiming for Nc5!} Rxd4 {[%emt 0:00:23]} 23. Nc5 {[%emt 0:00:20][%csl LRa4,LRb7]} Rd1+ {[%emt 0:01:22]} 24. Kh2 {[%emt 0:00:06]} Bc6 {[%emt 0:00:48]} 25. Rc2 {[%emt 0:08:28]} Ne5 $132 {[%emt 0:05:48][%mdl 2048] Black is not keeping still} 26. f4 {[%emt 0:00:34]} (26. b4 $11) 26... Ned7 {[%emt 0:01:53]} ({Black should play} 26... Nd3 $15 27. Nxd3 Rxd3) 27. Nxd7 {[%emt 0:00:19]} ({Better is} 27. Bf3 $1 $14 Rf1 28. Nxd7 Bxd7 29. Kg2) 27... Nxd7 {[%emt 0:00:36][%cal Bf6d7,Bd7b6,Bb6d5][%mdl 32]} 28. e5 {[%emt 0:03:34] Against Nf6} Bxg2 {[%emt 0:00:37]} 29. Kxg2 {[%emt 0:00:01]} Nb6 $1 {[%emt 0:00:32]} 30. b4 {[%emt 0:00:40]} a4 {[%emt 0:02:17]} 31. Bb2 {[%emt 0:00:42]} Rd3 {[%emt 0:00:41]} 32. Rac1 {[%emt 0:00:37]} (32. Rf1 $17) 32... h5 {[%emt 0:00:11]} 33. g4 {[%emt 0:00:37]} (33. Rf1 {keeps fighting.}) 33... Nd5 $19 {[%emt 0:00:14]} 34. Rf2 {[%emt 0:00:28]} hxg4 {[%emt 0:00:21]} 35. hxg4 {[%emt 0:00:02][%mdl 32768] [#]  Weighted Error Value: White=0.26 (precise) /Black=0.14 (very precise) . An unexpected result.} {Predecessor:} Ne3+ $146 36. Kg1 Rfd8 37. Re2 Nxg4 38. Rc7 Rg3+ 39. Kf1 Rd1+ 40. Re1 Rd2 41. Re2 Rf3+ {0-1 (50) Ferreira Fernandez,S (2119)-Martinez,J (2122) Santo Domingo 2022} 1/2-1/2

[Event "1st Henriquez Urena Memorial 2022"]
[Site "Santo Domingo"]
[Date "2022.09.21"]
[Round "6.1"]
[White "Peralta, Fernando"]
[Black "Ramirez, Alejandro"]
[Result "1/2-1/2"]
[ECO "E48"]
[WhiteElo "2600"]
[BlackElo "2561"]
[Annotator "TA"]
[PlyCount "27"]
[EventDate "2022.09.16"]
[EventType "swiss"]
[EventCountry "DOM"]
[SourceTitle "playchess.com"]
[Source "ChessBase"]
[SourceQuality "1"]
[TimeControl "5400+30"]

{[%evp 11,27,17,15,18,40,22,34,0,57,37,53,44,26,26,60,32,38,5]} 1. d4 {[%emt 0:00:03]} Nf6 {[%emt 0:00:19]} 2. c4 {[%emt 0:00:05]} e6 {[%emt 0:00:09]} 3. Nc3 {[%emt 0:00:42]} Bb4 {[%emt 0:00:13]} 4. e3 {[%emt 1:31:40]} O-O 5. Bd3 Re8 6. Nge2 d5 {CPLX 2.4} 7. O-O {E48: Nimzo-Indian: Rubinstein: 5 Bd3 d5 including 6 Ne2, but excluding 6 a3.} Nbd7 {CPLX 2.5 22 (c7-c5) (=11)} 8. cxd5 {[%emt 0:00:00] CPLX 2.5} (8. Qb3 {looks sharper.} Bd6 9. cxd5 exd5 10. Nxd5 Nxd5 11. Qxd5 Nc5 12. Bxh7+ Kxh7 13. Qh5+) 8... exd5 {[%emt 0:02:29] RECAPT} 9. f3 {[%emt 0:02:30] CPLX 2.3 34 (Qd1-b3) (=11)} (9. Qb3 {is interesting.} Bd6 10. Nxd5 Nxd5 11. Qxd5 Nc5 12. Qc4) 9... c5 {[%emt 0:10:57] RELBLUND 57 (Bb4-f8) (=20)} (9... Bf8 $11) 10. a3 $14 {[%emt 0:00:00][%cal Ba2a3,Ba3b4,Bb4b5][%mdl 32] CPLX 2.5} cxd4 {[%emt 1:21:23] CPLX 2.8 16 (Bb4xc3) (=19)} 11. axb4 {[%emt 0:00:00] CPLX 3.2} ({Of course not} 11. Nxd4 Bxc3 12. bxc3 Ne5 $11) 11... dxc3 {[#] EASY} 12. Nxc3 $146 {RECAPT} ({Predecessor:} 12. bxc3 Ne5 13. Bc2 Bd7 14. Nf4 Bb5 15. Re1 a6 16. Qd4 Qc7 17. Bb3 Bc4 18. Ba4 {½-½ (73) Gurevich,D (2545)-Peters,J (2500) Berkeley 1984}) 12... Qb6 {[%emt 0:01:00] CPLX 2.4 34 (Nd7-e5) (=18)} 13. b5 {[%emt 0:02:00] CPLX 2.7 28 (Bd3-b5) (=9)} Nc5 {[%emt 0:00:00] CPLX 2.7} 14. Bc2 {[%emt 0:00:00] Weighted Error Value: White=0.10 (very precise) /Black=0.23 (precise)} 1/2-1/2

[Event "1st Henriquez Urena Memorial 2022"]
[Site "Santo Domingo"]
[Date "2022.09.21"]
[Round "6.2"]
[White "Leon Hoyos, Manuel"]
[Black "Quezada Perez, Yasser"]
[Result "0-1"]
[ECO "A20"]
[WhiteElo "2491"]
[BlackElo "2580"]
[Annotator "TA"]
[PlyCount "46"]
[EventDate "2022.09.16"]
[EventType "swiss"]
[EventCountry "DOM"]
[SourceTitle "playchess.com"]
[Source "ChessBase"]
[SourceQuality "1"]
[TimeControl "5400+30"]

{[%evp 11,46,27,18,14,21,0,16,16,18,11,15,9,6,-12,-18,-204,-187,-185,-197,-186,-172,-170,-158,-229,-71,-808,-841,-811,-770,-1505,-1475,-29990,-29991,-29991,-29992,-1601,-1353]} 1. c4 {[%emt 0:00:08]} e5 {[%emt 0:00:06][%cal Be7e5,Be5e4][%mdl 32]} 2. g3 {[%emt 0:00:13]} Nf6 {[%emt 0:00:10]} 3. Bg2 {[%emt 0:00:07]} c6 {[%emt 0:00:07]} 4. Nf3 {[%emt 0:00:28]} e4 {[%emt 0:00:05]} 5. Nd4 {[%emt 0:00:06]} d5 {[%emt 0:00:04]} 6. cxd5 {[%emt 0:00:07]} Qxd5 {[%emt 0:00:05] RECAPT} 7. e3 {[%emt 0:00:24] BESTDEEP. A20: English Opening: 1...e5.} Qe5 {[%emt 0:01:32] BESTDEEP} 8. O-O {[%emt 0:06:20] CPLX 2.5 21 (f2-f4) (=11)} Bc5 {[%emt 0:03:43] CPLX 2.5 16 (h7-h5) (=5)} 9. d3 {[%emt 0:10:09] CPLX 2.6. The position is equal.} exd3 {[%emt 0:02:52] BESTDEEP} 10. Nd2 {[%emt 0:03:53] BESTDEEP} O-O {[%emt 0:07:37] CPLX 3.0 4 (Qe5-e7) (=4)} 11. Nc4 {[%emt 0:01:31][%csl LRd3,LRe5] EASY} Qh5 {[%emt 0:13:14] [#] EASY} 12. h3 $146 {[%emt 0:17:04] MISS-Qd1xh5 18 (Qd1xh5) (=7)} ({Predecessor:} 12. Qxh5 Nxh5 13. Nb3 Be7 14. Rd1 Rd8 15. Nba5 Nf6 16. Bd2 Nbd7 17. Rac1 Rb8 18. e4 {1-0 (32) Repanic,F (2159)-Luksic,E (2175) ICCF email 2017}) 12... Rd8 {[%emt 0:13:51] BESTDEEP} 13. g4 $2 {[%emt 0:27:32] [#] RELBLUND 186 (Qd1xh5) (=32)} (13. Qxh5 $11 Nxh5 14. Rd1) 13... Bxg4 $1 $19 {[%emt 0:00:16][%mdl 512] EASY} 14. hxg4 {[%emt 0:00:18] RECAPT} Nxg4 {[%emt 0:00:04][%csl Gg4][%cal Rh5h2] RECAPT} 15. Nf3 {[%emt 0:03:12][%cal Ob2b4] [#] Against Qh2+. EASY} Nd7 $1 {[%emt 0:01:25][%cal Bb8d7,Bd7c5,Bc5e4][%mdl 32] BESTDEEP} 16. b4 {[%emt 0:13:03] DEEPSTRONG} ({Reject} 16. Qxd3 b5 17. Rd1 bxc4 $19) 16... Bxb4 {[%emt 0:18:28] Hoping for ...b5. BESTDEEP} 17. Rb1 {[%emt 0:01:00] [#] CPLX 4.6 71 (Bc1-b2) (=27)} (17. Bb2 $17 b5 18. Ncd2) 17... Bd6 $2 $40 {[%emt 0:05:43][%mdl 128] Black wants a kill. Dancing on a razor blade. CPLX 4.9 158 (a7-a5) (=15)} 18. Rxb7 {[%emt 0:04:48][%mdl 8192] MISSDEEP-Rf1-e1 400 (Rf1-e1) (=58)} ({Don't go for} 18. Nxd6 $2 Nde5 19. Re1 Rxd6 $19) (18. Re1 $17 Bh2+ 19. Kf1) 18... Bh2+ {[%emt 0:01:23][%cal Bd6h2,Bh2c7,Bc7a5][%mdl 32] CPLX 5.5} 19. Kh1 {[%emt 0:00:03] EASY} Nc5 {[%emt 0:01:58] White must now prevent ...Nxf2+. CPLX 4.8} 20. Rb2 {[%emt 0:03:20] CPLX 5.1 400 (Rb7-e7) (=78)} Ne4 {[%emt 0:00:44] ( -> ...Ngxf2+). EASY} 21. Qe1 {[%emt 0:00:31] RELBLUND 400 (Qd1-d2) (=100)} Bc7+ {[%emt 0:03:58] BESTDEEP} 22. Kg1 {[%emt 0:00:08] EASY} Ng5 {[%emt 0:00:15] BESTDEEP} 23. Ncd2 {[%emt 0:00:31] EASY} Ba5 {[%emt 0:00:21] Weighted Error Value: White=1.35/Black=0.19 (very precise)} 0-1

[Event "1st Henriquez Urena Memorial 2022"]
[Site "Santo Domingo"]
[Date "2022.09.21"]
[Round "6.3"]
[White "Guzman, Christopher"]
[Black "Araujo Sanchez, Josue"]
[Result "1/2-1/2"]
[ECO "B90"]
[WhiteElo "2252"]
[BlackElo "2281"]
[Annotator "TA"]
[PlyCount "150"]
[EventDate "2022.09.16"]
[EventType "swiss"]
[EventCountry "DOM"]
[SourceTitle "playchess.com"]
[Source "ChessBase"]
[SourceQuality "1"]
[TimeControl "5400+30"]

{[%evp 9,150,14,20,0,10,14,8,2,42,42,42,42,42,42,42,42,44,35,57,48,49,28,28,28,28,28,28,28,28,29,28,28,28,10,43,39,43,48,55,48,48,53,103,107,106,100,110,108,188,183,227,176,173,172,166,176,171,169,168,145,177,171,180,181,219,213,415,204,183,171,270,290,292,288,288,322,269,279,296,258,239,151,171,148,154,145,385,394,361,359,325,308,517,283,502,495,741,628,1127,409,471,471,450,450,424,409,385,229,229,69,409,409,409,395,29961,29962,29967,1588,29959,599,29968,29968,5258,592,4610,4602,29977,29978,29977,94,94,0,0,0,0,0,0,0,0,0,0,0,0]} 1. e4 {[%emt 0:09:38]} c5 {[%emt 0:00:16]} 2. Nf3 {[%emt 0:00:06]} d6 {[%emt 0:00:21]} 3. d4 {[%emt 0:00:07]} cxd4 {[%emt 0:00:12]} 4. Nxd4 {[%emt 0:00:02]} Nf6 {[%emt 0:00:23]} 5. Nc3 {[%emt 0:00:02]} a6 {[%emt 0:00:22]} 6. h4 {[%emt 0:00:51] B90: Sicilian Najdorf: Unusual White 6th moves, 6 Be3 Ng4 and 6 Be3 e5.} e5 {[%emt 0:00:27]} 7. Nb3 {[%emt 0:00:02]} Be6 {[%emt 0:01:07]} 8. f4 {[%emt 0:00:05]} h5 {[%emt 0:01:54]} 9. f5 {[%emt 0:00:22]} Bd7 {[%emt 0:00:21][%cal Od6d5]} 10. Bg5 {[%emt 0:00:16] [#]} Bc6 $146 {[%emt 0:01:27]} ({Predecessor:} 10... Be7 11. Be2 Bc6 12. Bxf6 Bxf6 13. g3 a5 14. a4 g6 15. fxg6 fxg6 16. Bc4 Na6 {1-0 (49) Nomin Erdene,D (2377)-Zawadzka,J (2424) Batumi 2018}) 11. Bxf6 {[%emt 0:03:21]} Qxf6 {[%emt 0:00:13]} 12. Bc4 {[%emt 0:00:11]} Nd7 {[%emt 0:00:51][%cal Bb8d7,Bd7f6,Bf6g4][%mdl 32]} 13. Qe2 {[%emt 0:00:36]} Qd8 {[%emt 0:00:50]} 14. O-O-O {[%emt 0:00:08]} Nf6 {[%emt 0:01:54]} 15. Nd5 {[%emt 0:01:36]} Ng4 {[%emt 0:04:47]} 16. Nd2 {[%emt 0:01:00]} Be7 {[%emt 0:04:14]} 17. g3 {[%emt 0:01:12]} Rc8 {[%emt 0:07:01]} 18. Nf1 {[%emt 0:01:26]} b5 $1 {[%emt 0:01:11]} 19. Bb3 {[%emt 0:01:14]} Bxd5 {[%emt 0:01:07]} 20. Bxd5 {[%emt 0:08:17]} Qb6 {[%emt 0:00:12] Inhibits Ne3.} 21. Re1 {[%emt 0:00:23][%cal Bd1e1,Be1e3,Be3b3][%mdl 32]} Bd8 {[%emt 0:03:11]} 22. Ne3 {[%emt 0:01:23]} Nxe3 {[%emt 0:05:05]} 23. Qxe3 {[%emt 0:00:02]} Qxe3+ {[%emt 0:00:13]} 24. Rxe3 {[%emt 0:00:01]} Bb6 {[%emt 0:00:34]} 25. Rb3 {[%emt 0:01:00]} Rb8 {[%emt 0:02:40] Prevents Bb7.} (25... Rc5 $14) 26. Ra3 $16 {[%emt 0:00:38] White is more active.} a5 {[%emt 0:04:40]} 27. Bc6+ {[%emt 0:00:23]} Ke7 {[%emt 0:00:23]} 28. Bxb5 {[%emt 0:01:10]} Bc5 {[%emt 0:03:27]} (28... Rhc8 $16) 29. Rxa5 $18 {[%emt 0:01:14]} d5 {[%emt 0:05:04]} 30. Bc6 {[%emt 0:02:50]} Be3+ {[%emt 0:00:26]} 31. Kb1 {[%emt 0:00:19]} Bd4 {[%emt 0:00:45]} 32. b3 {[%emt 0:00:18]} (32. Rxd5 $6 Rxb2+ 33. Kc1 Rxa2 34. Rd7+ Kf6 $14) 32... dxe4 {[%emt 0:00:21]} 33. Bxe4 {[%emt 0:00:14]} Rhc8 {[%emt 0:00:15]} 34. Bd3 {[%emt 0:01:37]} Rb6 {[%emt 0:03:30]} 35. Rf1 {[%emt 0:00:54]} Kf6 {[%emt 0:00:11]} 36. Rd5 {[%emt 0:01:25]} Rc3 {[%emt 0:03:11]} 37. Rd7 {[%emt 0:00:55]} Rb4 $2 {[%emt 0:01:02]} (37... Rb8 {is a better defense.} 38. Rd6+ Ke7) 38. Kc1 {[%emt 0:00:46]} (38. Be2 $142) 38... Be3+ {[%emt 0:07:05]} 39. Kd1 {[%emt 0:01:56] And now Bc4 would win.} e4 {[%emt 0:01:07]} (39... Rd4 {was necessary.} 40. Rxd4 Bxd4) 40. Bc4 {[%emt 0:01:09]} Rbxc4 {[%emt 0:02:07]} 41. bxc4 {[%emt 0:00:02]} Rxc4 {[%emt 0:02:30][%mdl 4096] Endgame KRR-KRB} 42. Rd5 {[%emt 0:00:25]} (42. Ke2 $6 Bh6 $18) 42... Bd4 {[%emt 0:00:51]} 43. Ra5 {[%emt 0:07:44] Inhibits Ra4.} Be5 {[%emt 0:06:25]} 44. Ra3 {[%emt 0:00:29]} Bd6 {[%emt 0:02:22]} 45. Re3 {[%emt 0:03:13]} Ke5 {[%emt 0:01:13]} 46. Rb3 {[%emt 0:04:30]} Ra4 {[%emt 0:03:18]} 47. Rb5+ {[%emt 0:12:06]} Kd4 $2 {[%emt 0:01:51]} (47... Kf6 $16 {was worth a try.} 48. Rb6 Ke7) 48. f6 {[%emt 0:03:23]} gxf6 {[%emt 0:01:21]} 49. Ke2 {[%emt 0:00:55]} ({Don't do} 49. Rxf6 Bxg3 50. Rxf7 (50. Rxh5 Rxa2 51. Rc6 Ke3 $14) 50... Bxh4 51. Rxh5 Bg3 $18) (49. Rxh5 Rxa2 50. Rb5 (50. Rxf6 Bxg3 51. Rc6 Ke3 $14) 50... Bxg3 $16) 49... Be5 {[%emt 0:01:56]} 50. Rfb1 {[%emt 0:04:01]} Rxa2 $2 {[%emt 0:07:34]} (50... Kc4 51. Ke3 Bxg3 52. Rxh5 (52. Kxe4 Bxh4 53. Rxh5 Kc3+ 54. Kf3 Kxc2 $18) 52... Be5) 51. R1b4+ {[%emt 0:00:08]} Kc3 {[%emt 0:00:19]} 52. Rxe4 {[%emt 0:00:20]} Rxc2+ {[%emt 0:01:34]} (52... Ra6 $142 53. Rc5+ Kb2) 53. Kf3 {[%emt 0:00:08]} Ra2 {[%emt 0:01:32]} 54. Rb7 {[%emt 0:00:37]} (54. Rexe5 $142 {Intending Rec5+ and mate.} fxe5 55. Rxe5) 54... Ra1 {[%emt 0:02:16]} 55. Rxf7 {[%emt 0:01:00]} Rg1 {[%emt 0:00:59]} 56. Re3+ {[%emt 0:00:22]} Kc4 {[%emt 0:00:16]} 57. Kf2 {[%emt 0:00:26]} Rb1 {[%emt 0:00:40]} 58. Rf3 {[%emt 0:04:46]} (58. Ra3 $142) 58... Kd5 {[%emt 0:03:07]} 59. Rh7 $2 {[%emt 0:00:23]} (59. Ra3 $18) 59... Ke4 $2 {[%emt 0:02:21][%mdl 8192]} ({Better is} 59... Rb2+ $14 60. Kf1 Ke4) 60. Re3+ {[%emt 0:00:32]} Kf5 {[%emt 0:01:10]} 61. Rxh5+ {[%emt 0:00:46]} Kg4 $2 {[%emt 0:00:09]} (61... Kg6 $18) 62. Rexe5 {[%emt 0:00:05]} fxe5 {[%emt 0:00:08] KR-KR} 63. Rg5+ {[%emt 0:00:02]} Kh3 {[%emt 0:00:21]} 64. Kf3 {[%emt 0:00:52]} (64. h5 $142 Rb2+ 65. Kf3 Rb7 66. h6 e4+ 67. Kxe4 Ra7 68. g4 Kh4 69. Rg8 Ra4+ 70. Kd5 Ra5+ 71. Kc4 Ra4+ 72. Kd5 Ra5+ 73. Kd4 Ra4+ 74. Kc5) 64... Re1 {[%emt 0:02:46]} 65. h5 {[%emt 0:00:10]} Rf1+ {[%emt 0:00:51]} 66. Ke2 {[%emt 0:01:33]} (66. Ke4 $142 {White wants to mate with h6.} Re1+ 67. Kf5) 66... Kg2 {[%emt 0:00:20]} 67. h6 {[%emt 0:00:55] [#] Threatening mate with h7.} Rf2+ {[%emt 0:00:51]} 68. Ke3 {[%emt 0:00:17]} Rf1 {[%emt 0:00:13]} 69. h7 $2 {[%emt 0:00:20]} (69. g4 {mates} Rf8 70. h7 Rh8 71. Rg7 Kh3 72. g5 Rb8 73. g6 Kh4 74. Rg8 Rb3+ 75. Ke4) 69... Re1+ $16 {[%emt 0:00:12]} 70. Kd2 {[%emt 0:00:40]} (70. Kd3 $16 Rh1 71. Rg7 (71. Rxe5 Rxh7 72. g4 Kf3 $11)) 70... Rh1 $11 {[%emt 0:00:20] The position is equal.} 71. Rg7 {[%emt 0:00:09]} Kf3 {[%emt 0:00:31]} 72. g4 {[%emt 0:01:44] [#] g5 would kill now.} e4 $1 {[%emt 0:00:36][%cal Be5e4,Be4e3][%mdl 32]} 73. g5 {[%emt 0:00:12]} e3+ {[%emt 0:01:02]} 74. Kd3 {[%emt 0:00:31]} e2 {[%emt 0:00:14]} 75. Re7 {[%emt 0:04:01] White threatens g6 and mate.} Rxh7 {[%emt 0:01:24] Black escapes into a draw.  Weighted Error Value: White=0.25 (precise) /Black=0.37} 1/2-1/2

[Event "1st Henriquez Urena Memorial 2022"]
[Site "Santo Domingo"]
[Date "2022.09.21"]
[Round "6.4"]
[White "Polanco Nunez, Yoel Starling"]
[Black "Cuenca Jimenez, Jose Fernando"]
[Result "0-1"]
[ECO "A14"]
[WhiteElo "2199"]
[BlackElo "2553"]
[Annotator "TA"]
[PlyCount "72"]
[EventDate "2022.09.16"]
[EventType "swiss"]
[EventCountry "DOM"]
[SourceTitle "playchess.com"]
[Source "ChessBase"]
[SourceQuality "1"]
[TimeControl "5400+30"]

{[%evp 19,72,-6,0,0,0,0,0,0,0,0,0,-10,-22,-33,17,0,11,16,8,0,0,0,39,0,0,0,0,0,0,0,0,0,5,-132,-126,-117,-128,-81,-65,-151,-116,-179,-219,-470,-421,-529,-246,-342,-336,-3415,-2979,-2239,-2047,-1351,-1290]} 1. Nf3 {[%emt 0:02:30]} Nf6 {[%emt 0:00:07]} 2. g3 {[%emt 0:00:06]} d5 {[%emt 0:01:57]} 3. Bg2 {[%emt 0:00:04]} e6 {[%emt 0:00:27]} 4. O-O {[%emt 0:00:15]} Be7 {[%emt 0:00:06]} 5. c4 {[%emt 0:00:01]} d4 {[%emt 0:00:52]} 6. b3 {[%emt 0:00:32]} c5 {[%emt 0:00:57]} 7. e3 {[%emt 0:00:06]} Nc6 {[%emt 0:00:18]} 8. exd4 {[%emt 0:00:20]} cxd4 {[%emt 0:00:03]} 9. Re1 {[%emt 0:00:19]} O-O {[%emt 0:00:38]} 10. d3 {[%emt 0:00:12]} Nd7 {[%emt 0:02:16] CPLX 2.0 6 (Be7-b4) (=6) 10...Re8 is the hot move.} (10... Bb4 {seems wilder.} 11. Nfd2 e5 12. a3 Bg4) 11. Ba3 {[%emt 0:01:25] A14: English Opening: 1...e6 with b3 by White.} e5 {[%emt 0:07:12] CPLX 2.3} 12. Bxe7 {[%emt 0:01:04] CPLX 2.4} Qxe7 {[%emt 0:00:03] RECAPT} 13. a3 {[%emt 0:00:18] The position is equal.} a5 {[%emt 0:00:19] Prevents b4. BESTDEEP} 14. Nbd2 {[%emt 0:00:08] EASY} Nc5 {[%emt 0:02:16] CPLX 2.2} 15. Ne4 {[%emt 0:02:23] [#] CPLX 2.3} Na6 $146 {[%emt 0:03:56] BESTDEEP} ({Predecessor:} 15... Nxe4 16. Rxe4 Qd6 17. Qc2 Bf5 18. Ree1 Rac8 19. Nd2 h6 20. Ne4 Qe7 21. Qb2 Bg6 {½-½ (70) Galchenko,M (2433)-Sarana,A (2654) Chess.com INT 2020}) 16. Qc2 {[%emt 0:05:27] CPLX 2.3 11 (Nf3-h4) (=2)} Bf5 {[%emt 0:16:50] CPLX 2.4 50 (f7-f5) (=8)} (16... f5 $15 17. Ned2 f4) 17. Nfd2 {[%emt 0:04:25] CPLX 2.4 17 (Nf3-h4) (=4)} Be6 {[%emt 0:08:50] ...f5 is the strong threat. CPLX 2.4 11 (Ra8-c8) (=8)} 18. c5 {[%emt 0:11:03] BESTDEEP} Bd5 {[%emt 0:01:27] CPLX 2.3 0 (Ra8-d8) (=7)} 19. Rac1 {[%emt 0:13:10][%cal Oe4f6] CPLX 2.4 8 (Nd2-c4) (=4)} Rad8 {[%emt 0:05:58] BESTDEEP} 20. f4 {[%emt 0:08:47] BESTDEEP} Be6 {[%emt 0:11:23] CPLX 2.5 39 (e5xf4) (=10)} 21. fxe5 {[%emt 0:05:26] CPLX 2.5 39 (Ne4-d6) (=7)} (21. Nd6 $5 {[%cal Rf4f5]}) 21... Nxe5 {[%emt 0:00:04] RECAPT} 22. Nd6 {[%emt 0:00:43] CPLX 2.5 0 (Ne4-f2) (=6)} Ng4 {[%emt 0:01:18] BESTDEEP} 23. Nxb7 {[%emt 0:10:46] EASY} Ne3 {[%emt 0:01:18] EASY} 24. Rxe3 {[%emt 0:00:11] CPLX 3.9 0 (Qc2-b1) (=5)} dxe3 {[%emt 0:00:05] RECAPT} 25. Ne4 {[%emt 0:00:22] BESTDEEP} (25. Nxd8 $2 exd2 26. Qxd2 Qxd8 $19) 25... Rd5 {[%emt 0:05:32] CPLX 4.3 5 (f7-f5) (=7)} (25... Qxb7 $2 26. Nf6+ $1 {[%mdl 512]} gxf6 27. Bxb7 $18) (25... Nb4 $2 26. axb4 axb4 27. Nxd8 Qxd8 28. Re1 $18) 26. Ned6 {[%emt 0:07:12] [#] RELBLUND 137 (Nb7xa5) (=13)} (26. Nxa5 $11 f5 27. Nc3 (27. Nc6 $2 Qd7 $19) 27... Rxc5 28. b4) 26... Nxc5 $1 $17 {[%emt 0:11:22][%cal Ba6c5,Bc5b7,Bb7d6][%mdl 544] CPLX 4.3=>BLUNDERREACT} 27. Bxd5 {[%emt 0:12:57] EASY} Nxb7 {[%emt 0:01:11] EASY} 28. Bxe6 {[%emt 0:04:16] Black must now prevent Nxb7. BESTDEEP} Nxd6 {[%emt 0:00:58] CPLX 4.0} 29. Bd5 {[%emt 0:00:11] MISS-Be6-g4 86 (Be6-g4) (=16)} (29. Bg4 $15) 29... h5 {[%emt 0:02:43][%cal Bh7h5,Bh5h4][%mdl 32] CPLX 2.7 35 (g7-g6) (=7)} 30. d4 {[%emt 0:02:52] CPLX 2.7 63 (Qc2-e2) (=18)} (30. Qe2 $17 {is a better defense.}) 30... h4 $19 {[%emt 0:02:32] BESTDEEP} 31. g4 $2 {[%emt 0:05:31] CPLX 3.5 251 (Rc1-e1) (=29)} (31. Re1) 31... Qg5 {[%emt 0:04:06] CPLX 3.3 49 (Rf8-c8) (=9)} 32. Qg2 {[%emt 0:00:01] MISS-Bd5-f3 108 (Bd5-f3) (=33)} Qf4 {[%emt 0:00:44] MISS-e3-e2 283 (e3-e2) (=21)} (32... e2 $142 33. Re1 h3) 33. Rd1 {[%emt 0:01:07] CPLX 3.4 96 (Qg2-e2) (=35)} Re8 {[%emt 0:00:22] Threatens to win with ...e2. CPLX 3.3} 34. Qf3 {[%emt 0:01:30] RELBLUND 400 (Qg2-e2) (=51)} (34. Qe2) 34... e2 {[%emt 0:00:43] EASY. Black is clearly winning.} 35. Re1 {[%emt 0:00:01] EASY} Qxd4+ {[%emt 0:00:12] EASY} 36. Kg2 {[%emt 0:00:01] CPLX 4.0} h3+ {[%emt 0:09:25] Weighted Error Value: White=0.63/Black=0.23 (precise)} 0-1